Cogmind - Beta 15 @@@ ROGUE MODE // 2025.08.29 @ 23:18:50 Player: Bolche Result: Destroyed by Y-45 Defender with Beam Rifle Performance ------------- Evolutions (1) 500 Regions Visited (3) 600 Robots Destroyed (7) 35 Value Destroyed (184) 184 Prototype IDs (0) 0 Alien Tech Used (0) 0 Bonus (200) 200 TOTAL SCORE: 1519 Bonus ------- Pacifist 200 Cogmind --------- Core Integrity 0/400 Matter 182/300 Energy 100/100 System Corruption 0% Temperature Cool (33) Movement Core (850) Ox16 Location -9/Materials Parts ------- > --- POWER (1) -------- (None) > --- PROPULSION (3) --- (None) > --- UTILITY (3) ------ Medium Storage Unit Large Storage Unit Large Storage Unit > --- WEAPON (2) ------- (None) > --- INVENTORY (15) --- Small Storage Unit Small Storage Unit Medium Storage Unit High-capacity Battery (250) Medium Laser Assault Rifle Light Assault Rifle Peak State ------------ > --- POWER ------------ Ion Engine > --- PROPULSION ------- Aluminum Leg Aluminum Leg Aluminum Leg > --- UTILITY ---------- Small Storage Unit Large Storage Unit Large Storage Unit > --- WEAPON ----------- Grenade Launcher Mini Grenade Launcher > --- INVENTORY -------- Light Ion Engine Light Treads Light Treads Flight Unit Small Storage Unit Medium Storage Unit Medium Storage Unit High-capacity Battery Medium Laser Assault Rifle Light Assault Rifle Mining Laser [Rating: 11] Favorites ----------- Power Ion Engine Engine Ion Engine Propulsion Aluminum Leg Treads Light Treads Leg Aluminum Leg Flight Unit Flight Unit Utility Small Storage Unit Storage Small Storage Unit Protection Light Armor Plating Weapon Medium Laser Energy Gun Medium Laser Ballistic Gun Assault Rifle Launcher Mini Grenade Launcher Special Weapon Mining Laser Build | -11 -10 -10 -9 ------- Run | Yrd Mat Min Mat Slots Evolved 2 | . . . 2 Power . | . . . . Propulsion 1 | . . . 1 Utility 1 | . . . 1 Weapon . | . . . . Parts Attached 21 | 6 . 2 13 Power 2 | 1 . . 1 Engine 2 | 1 . . 1 Core . | . . . . Reactor . | . . . . Propulsion 8 | 2 . . 6 Treads 2 | . . . 2 Leg 5 | 2 . . 3 Wheel . | . . . . Hover . | . . . . Flight 1 | . . . 1 Utility 6 | 1 . 2 3 Device . | . . . . Storage 5 | 1 . 1 3 Processor . | . . . . Hackware . | . . . . Protection 1 | . . 1 . Artifact . | . . . . Weapon 5 | 2 . . 3 Energy Gun 1 | 1 . . . Energy Cannon . | . . . . Ballistic Gun 1 | 1 . . . Ballistic Cannon . | . . . . Launcher 2 | . . . 2 Special Weapon 1 | . . . 1 Impact Weapon . | . . . . Slashing Weapon . | . . . . Piercing Weapon . | . . . . Special Melee Weapon . | . . . . Unidentified Prototypes . | . . . . Parts Lost 14 | . . . 14 Power 2 | . . . 2 Propulsion 8 | . . . 8 Utility 1 | . . . 1 Weapon 3 | . . . 3 Highest Loss Streak 12 | . . . 12 To Critical Strikes . | . . . . Average Backups 8 | 2 5 7 10 Power . | . 1 1 . Propulsion 2 | . 2 3 2 Utility 1 | . . . 3 Weapon 2 | . 1 3 3 Tool/Special . | . . . . Unused Backups 4 | 1 . . 3 Power . | . . . . Propulsion 1 | 1 . . . Utility 2 | . . . 2 Weapon 1 | . . . 1 Tool/Special . | . . . . Average Slot Usage (%) 89 | . 85 99 82 Engine 11 | . 14 14 8 Treads 1 | . . . 2 Leg 24 | . 28 28 21 Storage 20 | . 14 14 27 Protection 6 | . . 12 3 Energy Gun 10 | . 14 14 7 Ballistic Gun 10 | . 14 14 7 Launcher 1 | . . . 3 Peak Build Rating 11 | 6 6 7 11 Average Rating 7 | 4 6 6 8 On Entrance 4 | . 6 6 7 Naked Turns . | . . . . Heaviest Build 54 | 14 14 18 54 Greatest Support 40 | 20 20 20 40 Greatest Overweight (x) 16 | 1 . . 16 Average Overweight (x) . | . . . 1 Largest Inventory Capacity 15 | 8 8 8 15 Average Capacity 10 | 7 8 8 14 Most Carried 14 | 5 7 8 14 Average Carried 8 | 2 5 7 10 Final Capacity 15 | 8 8 8 15 Final Carried 8 | 4 7 8 7 Class Distribution -------------------- 100% | Mutant Dominant Class ---------------- Mutant | -10/Materials Mutant | -10/Mines Mutant | -9/Materials Resources | -11 -10 -10 -9 ----------- Run | Yrd Mat Min Mat Matter Collected 323 | 240 . . 83 Remotely . | . . . . Salvage Created 115 | . . . 115 Parts 14 | . . . 14 Haulers Intercepted . | . . . . Recyclers Shooed . | . . . . Parts Field Recycled . | . . . . Retrieved Matter . | . . . . Parts Self-Destructed . | . . . . Prevented . | . . . . Kills | -11 -10 -10 -9 ------- Run | Yrd Mat Min Mat Combat Hostiles Destroyed 4 | . . . 4 Guns 2 | . . . 2 AOE 2 | . . . 2 Classes Destroyed 4 | . . . 4 Builder 1 | . . . 1 Watcher 2 | . . . 2 Grunt 3 | . . . 3 Sentry 1 | . . . 1 Best Kill Streak 4 | . . . 4 Combat Bots Only 2 | . . . 2 Max Kills in Single Turn 3 | . . . 3 Gunslinging . | . . . . Exploded 1 | . . . 1 Melee . | . . . . Uniques/NPCs Destroyed . | . . . . Combat | -11 -10 -10 -9 -------- Run | Yrd Mat Min Mat Hostile Shots Fired 235 | . . 7 228 Missed 74 | . . 3 71 Hits 161 | . . 4 157 Projectile 161 | . . 4 157 Critical Strikes 4 | . . . 4 Damage Taken 1948 | . . 55 1893 Core 414 | . . . 414 Absorbed by Shields . | . . . . Core Remaining (%) 100 | 100 . 100 . Volleys Fired 15 | . . . 15 Largest 2 | . . . 2 Hottest 70 | . . . 70 Shots Fired 28 | . . . 28 Gun 22 | . . . 22 Cannon . | . . . . Launcher 6 | . . . 6 Special . | . . . . Kinetic 11 | . . . 11 Thermal 11 | . . . 11 Explosive 6 | . . . 6 Electromagnetic . | . . . . Robot Hit Streak 7 | . . . 7 Robot Miss Streak 2 | . . . 2 Penetration Max . | . . . . Secondary Targets . | . . . . Shots Hit Robots 19 | . . . 19 Core Hits 14 | . . . 14 Critical Kills . | . . . . Critical Parts Destroyed . | . . . . Critical Strikes 1 | . . . 1 Burn 1 | . . . 1 Melee Attacks . | . . . . Impact . | . . . . Slashing . | . . . . Piercing . | . . . . Sneak Attacks . | . . . . Combat Hostiles . | . . . . Follow-up Attacks . | . . . . Damage Inflicted 767 | . . . 767 Guns 187 | . . . 187 Cannons . | . . . . Explosions 580 | . . . 580 Melee . | . . . . Ramming . | . . . . Kinetic 100 | . . . 100 Thermal 87 | . . . 87 Explosive 580 | . . . 580 Electromagnetic . | . . . . Impact . | . . . . Slashing . | . . . . Piercing . | . . . . Highest Corruption . | . . . . Average Corruption . | . . . . Corruption Purged . | . . . . Corruption Blocked . | . . . . Overload Shots . | . . . . Overflow Damage . | . . . . Projectiles . | . . . . Explosions . | . . . . Melee . | . . . . Knockbacks . | . . . . Impact . | . . . . Kinetic . | . . . . Secondary . | . . . . Self-Inflicted Damage . | . . . . Shots . | . . . . Rammed . | . . . . Targets Rammed 1 | . . . 1 Kicked 1 | . . . 1 Crushed . | . . . . Highest Temperature 36 | . . . 36 Average Temperature 16 | . . . 16 Received Heat Transfer 978 | . . 30 948 Siege Activations . | . . . . Martial Activations . | . . . . Shielding Activations . | . . . . Robots Disrupted . | . . . . Combat Hostiles . | . . . . Robots Corrupted . | . . . . Combat Hostiles . | . . . . Parts Fried . | . . . . Impact Corruptions . | . . . . Robots Melted . | . . . . Combat Hostiles . | . . . . Parts Melted . | . . . . Heat Transferred 333 | . . . 333 Parts Sabotaged . | . . . . Parts Stolen . | . . . . Parts Stripped . | . . . . Power Chain Reactions . | . . . . Alert | -11 -10 -10 -9 ------- Run | Yrd Mat Min Mat Maximum Alert Level . | . . . . Low Security (%) 100 | 100 100 100 100 Level 1 . | . . . . Level 2 . | . . . . Level 3 . | . . . . Level 4 . | . . . . Level 5 . | . . . . High Security . | . . . . Max Security . | . . . . Peak Influence 41 | . . . 41 Initial . | . . . . Average 4 | . . . 10 Influence Increases 160 | . . . 160 Destroy 0b10 Robot/C 80 | . . . 80 Destroy 0b10 Robot/NC 15 | . . . 15 Destroy Leader 24 | . . . 24 Successful Hack 12 | . . . 12 Destroy Structure 29 | . . . 29 Influence Decreases 160 | . . . 160 Time Decay 84 | . . . 84 Lost Part 76 | . . . 76 Squads Dispatched 3 | . . . 3 Investigation 1 | . . . 1 Extermination . | . . . . Reinforcement 2 | . . . 2 Assault . | . . . . Garrison . | . . . . Intercept . | . . . . Searches Triggered . | . . . . Construction Impeded . | . . . . Haulers Reinforced . | . . . . Active Scanning Responses . | . . . . Cargo Convoy Interrupts . | . . . . Stealth | -11 -10 -10 -9 --------- Run | Yrd Mat Min Mat Distress Signals 2 | . . . 2 Communications Jammed . | . . . . Distress Signals . | . . . . Times Spotted 19 | . . 3 16 Peak Tracking Total 7 | . . 3 7 Tactical Retreats . | . . . . Traps | -11 -10 -10 -9 ------- Run | Yrd Mat Min Mat Traps Triggered . | . . . . Indirectly . | . . . . Trap Hack Attempts . | . . . . Triggered . | . . . . Disarmed . | . . . . Reprogrammed . | . . . . Reused . | . . . . Traps Extracted . | . . . . Installed . | . . . . Triggered . | . . . . Machines | -11 -10 -10 -9 ---------- Run | Yrd Mat Min Mat Machines Disabled . | . . . . Max in Single Turn . | . . . . Machines Repaired . | . . . . Machines Dismantled . | . . . . Machines Sabotaged . | . . . . Overloaded Fab Kills . | . . . . Hacking | -11 -10 -10 -9 --------- Run | Yrd Mat Min Mat Machines Accessed 1 | . . . 1 Terminals 1 | . . . 1 Fabricators . | . . . . Repair Stations . | . . . . Recycling Units . | . . . . Scanalyzers . | . . . . Garrison Access . | . . . . Total Hacks 3 | . . . 3 Successful 2 | . . . 2 Failed 1 | . . . 1 Catastrophic 1 | . . . 1 Database Lockouts . | . . . . Manual . | . . . . Terminals 3 | . . . 3 Fabricators . | . . . . Repair Stations . | . . . . Recycling Units . | . . . . Scanalyzers . | . . . . Garrison Access . | . . . . Terminal Hacks 2 | . . . 2 Recall Investigation 1 | . . . 1 Zone Layout 1 | . . . 1 Fabricator Hacks . | . . . . Repair Station Hacks . | . . . . Recycling Unit Hacks . | . . . . Scanalyzer . | . . . . Garrison Access Hacks . | . . . . Unauthorized Hacks . | . . . . Terminals . | . . . . Fabricators . | . . . . Repair Stations . | . . . . Recycling Units . | . . . . Scanalyzers . | . . . . Garrison Access . | . . . . Data Cores Recovered . | . . . . Used . | . . . . Hacking Detections 1 | . . . 1 Full Trace Events 1 | . . . 1 Feedback Events . | . . . . Feedback Blocked . | . . . . Robot Schematics Acquired . | . . . . Robots Built . | . . . . Authchips . | . . . . Time . | . . . . Total Robot Build Rating . | . . . . Part Schematics Acquired . | . . . . Parts Built . | . . . . Authchips . | . . . . Time . | . . . . Total Part Build Rating . | . . . . Parts Repaired . | . . . . Time . | . . . . Parts Recycled . | . . . . Recycled Matter . | . . . . Retrieved Matter . | . . . . Retrieved Components . | . . . . Parts Scanalyzed . | . . . . Part Schematics Acquired . | . . . . Parts Damaged . | . . . . Bothacking | -11 -10 -10 -9 ------------ Run | Yrd Mat Min Mat Used RIF Installer . | . . . . Robots Hacked . | . . . . Non-combat . | . . . . Combat . | . . . . Robot Hacks Applied . | . . . . Relay Couplers Released . | . . . . Fabnet Peak Effective % . | . . . . Robots Rewired . | . . . . Allies Hacked . | . . . . Hacks Repelled . | . . . . Allies | -11 -10 -10 -9 -------- Run | Yrd Mat Min Mat Total Allies . | . . . . Largest Group . | . . . . Highest-Rated Group . | . . . . Highest-Rated Ally . | . . . . Total Orders . | . . . . Ally Attacks . | . . . . Total Damage . | . . . . Kills . | . . . . Allies Corrupted . | . . . . Allies Melted . | . . . . Intel | -11 -10 -10 -9 ------- Run | Yrd Mat Min Mat Active Infowar (turns) . | . . . . Robot Analysis Total . | . . . . Derelict Logs Recovered 2 | . . 2 . Drone Launches . | . . . . Drone Recoveries . | . . . . Exploration | -11 -10 -10 -9 ------------- Run | Yrd Mat Min Mat Turns Passed 700 | 71 69 253 307 Spaces Moved 411 | 46 56 197 112 Core 14 | 11 . . 3 Treads 5 | . . . 5 Legs 391 | 35 56 197 103 Wheels . | . . . . Hover . | . . . . Flight 1 | . . . 1 Fastest Speed 50 | 50 120 120 120 Average Speed 145 | 116 120 120 213 Slowest Speed 1020 | 190 120 120 1020 Overloaded Moves . | . . . . Propulsion Burnouts . | . . . . Robots Hopped . | . . . . Potential Cave-ins . | . . . . Cave-ins Triggered . | . . . . Exploration Rate (%) 14 | 4 15 23 17 Regions Visited 3 Branch Regions 1 Pre-discovered Areas 1 | . . 1 . Known Exits Taken . | . . . . Unknown Exits Taken 3 | 1 1 1 . Scrap Searched . | . . . . Spaces Dug . | . . . . Terrain Destroyed 26 | . . . 26 Melee . | . . . . Projectile . | . . . . AOE 26 | . . . 26 Terrain Rammed . | . . . . Walls Destroyed . | . . . . Machines Disabled . | . . . . Actions | -11 -10 -10 -9 --------- Run | Yrd Mat Min Mat Total 493 | 63 58 214 158 Wait 13 | . . 12 1 Move 408 | 45 55 196 112 Hop . | . . . . Pick Up 27 | 11 3 3 10 Fast Attach . | . . . . Attach 22 | 6 . 2 14 Detach 4 | . . . 4 Swap . | . . . . Drop 3 | 1 . 1 1 Fire 15 | . . . 15 Melee . | . . . . Ram . | . . . . Kick 1 | . . . 1 Crush . | . . . . Escape Stasis . | . . . . Rewire . | . . . . Trap . | . . . . Miscellaneous . | . . . . Route ------- -11/Scrapyard -10/Materials -10/Mines (discovered 2 exits: *Mat / Sub) -9/Materials History --------- Turn | Location | Event 30 | -11/Scrapyard | Discovered new exit (range 15) 72 | -11/Scrapyard | Entered Materials 128 | -10/Materials | Discovered new exit (range 6) 141 | -10/Materials | Entered Mines 169 | -10/Mines | Learned location of Zion (-7) 174 | -10/Mines | Met a Derelict bent on vengeance 185 | -10/Mines | Discovered new exit (range 8) 189 | -10/Mines | Identified exit to Subcaves 310 | -10/Mines | Build established: Mutant 394 | -10/Mines | Entered Materials 394 | -9/Materials | Evolved 2 slots: Propulsion x1, Utility x1 673 | -9/Materials | Core integrity fell below 50% 690 | -9/Materials | Core integrity fell below 20% 701 | -9/Materials | Destroyed by Y-45 Defender with Beam Rifle Last Messages --------------- U-05 Engineer destroyed. Critical hit (Burn: +37). Flight Unit destroyed. Lgt. Treads destroyed. U-05 Engineer builds a Wall. K-01 Serf cleans the Terminal. G-34 Mercenary destroyed. U-05 Engineer lays Concrete. K-01 Serf collects debris. U-05 Engineer builds a Wall. K-01 Serf collects debris. Critical hit (Burn: +37). K-01 Serf collects debris. U-05 Engineer lays Concrete. K-01 Serf collects debris. U-05 Engineer lays Concrete. Critical hit (Burn: +37). K-01 Serf cleans the Terminal. U-05 Engineer builds a Wall. Critical hit (Burn: +37). Map ----- +----------------------------------------------------+ | ?????????????????????????????????????????????????? | | ?????????????????????????????????????????????????? | | ?????????????????????????????????????????????????? | | ?????????????????????????????????????????????????? | | ?????????????????????????????????????????????????? | | ?????????????????????????????????????????????????? | | ?????????????????????????????????????????????????? | | ?????????????????????????????????????????????????? | | ?????????????????????????? ????????????????????? | | ?????????????????????????+ ????????????????????? | | ?????????????????????????# #???????????????????? | | ?????????????????????????# #???????????????????? | | ?????????????????????????# #???????????????????? | | ?????????????????????????# #???????????????????? | | ?????????????????????????# #??????????########?? | | ?????????????????????????# #??????????# !#?? | | ?????????????????????????# +??????????# #?? | | ?????????????????????????# #??????????# ]] ##? | | ?????????????????????????+ #??????????# ]] # | | ?????????????????????????# #??????????? ] | | ?????????????????????????# Y #????????? # * #?? | | ?????????????????????????# ########### #+##### | | ?????????????????????????# g u | | ?????????????############# [* =*Y r a% | | ???????????# %!%[%g * % | | ???????????# @k=*######### ### | | ???????????# k #??????#= | | ???????????# #### """ #??????# [ | | ??????????????????# """ k#??????# ! | | ??????????????????# """ "#??????# ||! # | | ??????????????????# T#??????# |!! # | | ???????????????????? "#??????# |! #! | | ???????????????????? #??????###########+## | | ??????????????????? #????????????????# ## | | ???????????????????######### #????????????????# ## | | ???????????????????????????? a????????????????# ## | | ???????????????????????????? ????????????????# ## | | ???????????????????????????? ???????????????# + | | ????????????????????????????? ???????????????# ## | | ????????????????????????????? ????????????????# # | | ??????????????????????????????????????????????# # | | ??????????????????????????????????????????????# # | | ??????????????????????????????????????????????# # | | ??????????????????????????????????????????????# #! | | ??????????????????????????????????????????????# # | | ??????????????????????????????????????????????# # | | ??????????????????????????????????????????????# ## | | ??????????????????????????????????????????????# ## | | ??????????????????????????????????????????????# | | ??????????????????????????????????????????????# | +----------------------------------------------------+ Best States ------------- Heat Dissipation 28 Energy Generation 10 Energy Capacity 500 Matter Stores 280 Matter Capacity 300 Sight Range 16 Terrain Scan Density 10 Armor Coverage 150 Evasion (%) 55 Recoil Reduction 2 Item Schematics ----------------- None Robot Schematics ------------------ None Fabricated ------------ Nothing Repaired ---------- Nothing Alien Tech Used ----------------- None Achievements -------------- None Challenges ------------ None Game ------ Seed ChainModifiedCanceller Manual? 0 Play Time 00:15:28 Cumulative 4.2 hours Start 2025.08.29 @ 23:01:05 End 2025.08.29 @ 23:18:50 Sessions 1 Manual Loads 0 Difficulty Rogue Special Mode None Game No. 11 Rogue 5 Adventurer 6 Explorer 0 Win Type - Total 0 Types 0/0/0/0/0/0/0/0/0/0 Lore% 3 Gallery% 6 Achievement% 7 Wizard Run 0 Options --------- Layout 1 ASCII 0 Keyboard 1 Movement Numpad Keybinds 1 Fullscreen 2 Font 24/Smallcaps Map View 50x35 Zoom Use 10% Tactical HUD 0 Map Filters NONE Filters NONE Steam 1 RUN: 29e33d7c-d20f-48da-8934-24ed291dccae